bitfinex-derivatives/quotes_BTCF0:USTF0_20251230
["timestamp","ask_amount","ask_price","bid_price","bid_amount"]
[1767074737917,0.02907247,87332.0,87317.0,0.05736]
[1767074738221,0.02907247,87331.0,87317.0,0.05736]
[1767074738521,0.0114662,87333.0,87317.0,0.05736]
[1767074738818,0.02907558,87332.0,87317.0,0.05736]
[1767074739016,0.02907558,87331.0,87317.0,0.05736]
[1767074739216,0.0114662,87333.0,87317.0,0.05736]
[1767074739413,0.0114665,87331.0,87317.0,0.05736]
[1767074739811,0.0114673,87325.0,87306.0,0.00017183]
[1767074740012,0.0114668,87329.0,87307.0,0.1548]
[1767074740219,0.0114668,87329.0,87307.0,0.26931539]
[1767074742321,0.0114672,87326.0,87307.0,0.26931539]
[1767074745317,0.0114672,87326.0,87307.0,0.11451539]
[1767074745520,0.0114672,87326.0,87308.0,0.1548]
[1767074745826,0.0114666,87330.0,87308.0,0.1548]
[1767074746827,0.02953179,87329.0,87308.0,0.1548]
[1767074747022,0.0114661,87334.0,87309.0,0.0114693]
[1767074747223,0.02953277,87333.0,87309.0,0.0114693]
[1767074747522,0.02953277,87332.0,87309.0,0.0114693]
[1767074747721,0.02953277,87331.0,87309.0,0.0114693]
[1767074748017,0.02953277,87330.0,87309.0,0.0114693]
[1767074748221,0.02953277,87329.0,87309.0,0.0114693]
[1767074748418,0.0114661,87334.0,87309.0,0.0114693]
[1767074748613,0.02953403,87333.0,87309.0,0.0114693]
[1767074748813,0.02953403,87332.0,87309.0,0.0114693]
[1767074749020,0.02953403,87331.0,87309.0,0.0114693]
[1767074749221,0.02953403,87330.0,87309.0,0.0114693]
[1767074749427,0.02953403,87329.0,87309.0,0.0114693]
[1767074749626,0.0114661,87334.0,87309.0,0.0114693]
[1767074749927,0.0114664,87332.0,87309.0,0.0114693]
[1767074750131,0.02953575,87331.0,87309.0,0.0114693]
[1767074750321,0.02953575,87330.0,87309.0,0.0114693]
[1767074750521,0.02953575,87329.0,87309.0,0.0114693]
[1767074750820,0.0114664,87332.0,87309.0,0.0114693]
[1767074751022,0.02953571,87331.0,87309.0,0.0114693]
[1767074751221,0.02953571,87330.0,87309.0,0.0114693]
[1767074751520,0.02953571,87329.0,87309.0,0.0114693]
[1767074751721,0.0114664,87332.0,87310.0,0.11452064]
[1767074751927,0.0045357,87331.0,87310.0,0.11452064]
[1767074752126,0.1548,87333.0,87310.0,0.11452064]
[1767074752422,0.1548,87333.0,87311.0,0.0114691]
[1767074753121,0.1548,87333.0,87312.0,0.11451998]
[1767074753330,0.1548,87333.0,87313.0,0.05736]
[1767074756814,0.0116377,87336.0,87313.0,0.05736]
[1767074757015,0.05736,87335.0,87313.0,0.05736]
[1767074757224,0.1548,87335.0,87314.0,0.11451736]
[1767074759834,0.0114662,87334.0,87314.0,0.11451736]
[1767074763136,0.1548,87335.0,87314.0,0.11451736]
[1767074763137,0.0114665,87331.0,87314.0,0.11451736]
[1767074763435,0.0114668,87328.0,87314.0,0.11451736]
[1767074771444,0.0114668,87328.0,87315.0,0.05736]
[1767074779752,0.0114673,87325.0,87315.0,0.05736]
[1767074780445,0.0114676,87323.0,87312.0,0.05736]
[1767074792361,0.0114671,87326.0,87312.0,0.05736]
[1767074814381,0.16752699,87330.0,87312.0,0.05736]
[1767074814583,0.03008011,87329.0,87312.0,0.05736]
[1767074814785,0.03008011,87328.0,87312.0,0.05736]
[1767074815083,0.03008011,87327.0,87312.0,0.05736]
[1767074815286,0.03061475,87326.0,87312.0,0.05736]
[1767074815585,0.0114667,87330.0,87312.0,0.05736]
[1767074815886,0.0114669,87328.0,87312.0,0.05736]
[1767074816189,0.03061476,87327.0,87312.0,0.05736]
[1767074816378,0.03061476,87326.0,87312.0,0.05736]
[1767074816579,0.0114669,87328.0,87312.0,0.05736]
[1767074816779,0.03061513,87327.0,87312.0,0.05736]
[1767074817077,0.03061513,87326.0,87312.0,0.05736]
[1767074817282,0.0114669,87328.0,87312.0,0.05736]
[1767074817482,0.03061507,87327.0,87312.0,0.05736]
[1767074817682,0.03061507,87326.0,87312.0,0.05736]
[1767074817981,0.0114669,87328.0,87312.0,0.05736]
[1767074818188,0.03061511,87327.0,87312.0,0.05736]
[1767074818389,0.03061511,87326.0,87312.0,0.05736]
[1767074818582,0.0114669,87328.0,87312.0,0.05736]
[1767074818785,0.03061509,87327.0,87312.0,0.05736]
[1767074818978,0.03061509,87326.0,87312.0,0.05736]
[1767074819178,0.0114669,87328.0,87312.0,0.05736]
[1767074819387,0.03061509,87327.0,87312.0,0.05736]
[1767074819690,0.03061509,87326.0,87312.0,0.05736]
[1767074819875,0.0114669,87328.0,87312.0,0.05736]
[1767074820080,0.03061509,87327.0,87312.0,0.05736]
[1767074820279,0.03061509,87326.0,87312.0,0.05736]
[1767074820491,0.0114669,87328.0,87312.0,0.05736]
[1767074820684,0.03061512,87327.0,87312.0,0.05736]
[1767074820985,0.03061512,87326.0,87312.0,0.05736]
[1767074821294,0.0114669,87328.0,87312.0,0.05736]
[1767074821483,0.03061512,87327.0,87312.0,0.05736]
[1767074821674,0.03061512,87326.0,87312.0,0.05736]
[1767074821875,0.0114669,87328.0,87312.0,0.05736]
[1767074822078,0.03056356,87327.0,87312.0,0.05736]
[1767074822287,0.0114664,87332.0,87312.0,0.05736]
[1767074822486,0.030562,87331.0,87312.0,0.05736]
[1767074822685,0.030562,87330.0,87312.0,0.05736]
[1767074822985,0.030562,87329.0,87312.0,0.05736]
[1767074823173,0.030562,87328.0,87312.0,0.05736]
[1767074823377,0.030562,87327.0,87312.0,0.05736]
[1767074823581,0.0114666,87330.0,87312.0,0.05736]
[1767074823782,0.030566,87329.0,87312.0,0.05736]
[1767074823982,0.030566,87328.0,87312.0,0.05736]
[1767074824187,0.030566,87327.0,87312.0,0.05736]
[1767074824383,0.0114666,87330.0,87312.0,0.05736]
[1767074824583,0.03056551,87329.0,87312.0,0.05736]
[1767074824886,0.03056551,87328.0,87312.0,0.05736]
[1767074825186,0.03056551,87327.0,87312.0,0.05736]
[1767074825386,0.011467,87327.0,87312.0,0.05736]
[1767074826286,0.0114665,87331.0,87312.0,0.05736]
[1767074826486,0.03056525,87330.0,87312.0,0.05736]
[1767074826678,0.03056525,87329.0,87312.0,0.05736]
[1767074826874,0.03056525,87328.0,87312.0,0.05736]
[1767074827079,0.03056525,87327.0,87313.0,0.0114688]
[1767074827274,0.166266,87335.0,87313.0,0.0114688]
[1767074827489,0.03056386,87334.0,87313.0,0.0114688]
[1767074827687,0.03056386,87333.0,87313.0,0.0114688]
[1767074827888,0.03056386,87332.0,87313.0,0.0114688]
[1767074828089,0.03056386,87331.0,87313.0,0.0114688]
[1767074828293,0.03056386,87330.0,87313.0,0.0114688]
[1767074828490,0.03056386,87329.0,87313.0,0.0114688]
[1767074828690,0.03056386,87328.0,87313.0,0.0114688]
[1767074828892,0.166266,87335.0,87313.0,0.0114688]
[1767074829094,0.03056303,87334.0,87313.0,0.0114688]
[1767074829286,0.0114664,87332.0,87312.0,0.05736]
[1767074829492,0.03056303,87331.0,87312.0,0.05736]
[1767074829695,0.03056303,87330.0,87312.0,0.05736]
[1767074829894,0.03056303,87329.0,87312.0,0.05736]
[1767074830096,0.03056303,87328.0,87312.0,0.05736]
[1767074830297,0.05736,87330.0,87312.0,0.05736]
[1767074830500,0.03056213,87329.0,87312.0,0.05736]
[1767074830793,0.03056213,87328.0,87312.0,0.05736]
[1767074830982,0.05736,87330.0,87312.0,0.05736]
[1767074831186,0.03056213,87329.0,87312.0,0.05736]
[1767074831392,0.03056213,87328.0,87312.0,0.05736]
[1767074831593,0.05736,87330.0,87312.0,0.05736]
[1767074831894,0.03056182,87329.0,87312.0,0.05736]
[1767074832094,0.03056182,87328.0,87312.0,0.05736]
[1767074832393,0.05736,87330.0,87312.0,0.05736]
[1767074832590,0.03056157,87329.0,87312.0,0.05736]
[1767074832791,0.03056157,87328.0,87312.0,0.05736]
[1767074832990,0.05736,87330.0,87312.0,0.05736]
[1767074833285,0.03056152,87329.0,87312.0,0.05736]
[1767074833488,0.03056152,87328.0,87312.0,0.05736]
[1767074833695,0.05736,87330.0,87312.0,0.05736]
[1767074833894,0.03056136,87329.0,87312.0,0.05736]
[1767074834094,0.03056136,87328.0,87312.0,0.05736]
[1767074834289,0.05736,87330.0,87312.0,0.05736]
[1767074834584,0.03056118,87329.0,87312.0,0.05736]
[1767074834787,0.03056118,87328.0,87313.0,0.0114688]
[1767074834985,0.05736,87330.0,87313.0,0.0114688]
[1767074835190,0.03056116,87329.0,87313.0,0.0114688]
[1767074835391,0.03056105,87328.0,87313.0,0.0114688]
[1767074835587,0.05736,87330.0,87313.0,0.0114688]
[1767074835895,0.0116377,87336.0,87320.0,0.15606029]
[1767074836095,0.05736,87331.0,87320.0,0.15606029]
[1767074837297,0.0001718,87336.0,87320.0,0.0114678]
[1767074837598,1.8e-06,87336.0,87320.0,0.21342029]
[1767074838495,1.8e-06,87336.0,87320.0,0.05736]
[1767074838896,0.0114677,87336.0,87320.0,0.05736]
[1767074843100,0.0114662,87333.0,87319.0,0.06327037]
[1767074843301,0.0114662,87333.0,87321.0,0.05736]
[1767074847904,0.03028078,87332.0,87321.0,0.05736]
[1767074848104,0.03028078,87331.0,87321.0,0.05736]
[1767074848402,0.03028078,87330.0,87321.0,0.05736]
[1767074848597,0.03028078,87329.0,87321.0,0.05736]
[1767074848794,0.0114662,87333.0,87321.0,0.05736]
[1767074848994,0.03028175,87332.0,87321.0,0.05736]
[1767074849203,0.03028175,87331.0,87321.0,0.05736]
[1767074849400,0.03028175,87330.0,87321.0,0.05736]
[1767074849602,0.03028175,87329.0,87321.0,0.05736]
[1767074849802,0.0114662,87333.0,87321.0,0.05736]
[1767074850002,0.03028245,87332.0,87321.0,0.05736]
[1767074850204,0.03028245,87331.0,87321.0,0.05736]
[1767074850405,0.03028245,87330.0,87321.0,0.05736]
[1767074850604,0.03028245,87329.0,87321.0,0.05736]
[1767074850804,0.0114662,87333.0,87321.0,0.05736]
[1767074851004,0.03028263,87332.0,87321.0,0.05736]
[1767074851305,0.04174913,87331.0,87321.0,0.05736]
[1767074851501,0.03028263,87330.0,87321.0,0.05736]
[1767074851702,0.03028263,87330.0,87317.0,0.1548]
[1767074851903,0.03007728,87329.0,87317.0,0.1548]
[1767074852103,0.0114665,87331.0,87317.0,0.1548]
[1767074852301,0.03007752,87330.0,87317.0,0.1548]
[1767074852500,0.03007752,87329.0,87317.0,0.1548]
[1767074852707,0.0114665,87331.0,87317.0,0.1548]
[1767074852910,0.02997542,87330.0,87317.0,0.1548]
[1767074853104,0.02997542,87329.0,87317.0,0.1548]
[1767074853300,0.011466,87335.0,87317.0,0.1548]
[1767074853500,0.02997562,87334.0,87317.0,0.1548]
[1767074853705,0.04144182,87333.0,87317.0,0.1548]
[1767074853904,0.02997562,87332.0,87317.0,0.1548]
[1767074854112,0.02997562,87331.0,87317.0,0.1548]
[1767074854308,0.02997562,87330.0,87317.0,0.1548]
[1767074854510,0.02997562,87329.0,87317.0,0.1548]
[1767074854710,0.0114662,87333.0,87317.0,0.1548]
[1767074854913,0.0299759,87332.0,87317.0,0.1548]
[1767074855109,0.0299759,87331.0,87317.0,0.1548]
[1767074855313,0.0299759,87330.0,87317.0,0.1548]
[1767074855515,0.0299759,87329.0,87317.0,0.1548]
[1767074855712,0.0114662,87333.0,87317.0,0.1548]
[1767074855914,0.02997618,87332.0,87317.0,0.1548]
[1767074856113,0.02997618,87331.0,87317.0,0.1548]
[1767074856316,0.02997618,87330.0,87317.0,0.1548]
[1767074856516,0.02997618,87329.0,87317.0,0.1548]
[1767074856716,0.0974418,87336.0,87317.0,0.1548]
[1767074857014,0.02997665,87335.0,87317.0,0.1548]
[1767074857210,0.02997665,87334.0,87317.0,0.1548]
[1767074857411,0.02997665,87333.0,87317.0,0.1548]
[1767074857613,0.02997665,87332.0,87317.0,0.1548]
[1767074857806,0.02997665,87331.0,87317.0,0.1548]
[1767074858005,0.02997665,87330.0,87317.0,0.1548]
[1767074858206,0.02997665,87329.0,87317.0,0.1548]
[1767074858413,0.0974418,87336.0,87317.0,0.1548]
[1767074858615,0.02997696,87335.0,87317.0,0.1548]
[1767074858913,0.02997696,87334.0,87317.0,0.1548]
[1767074859114,0.02997696,87333.0,87317.0,0.1548]
[1767074859316,0.02997696,87332.0,87317.0,0.1548]
[1767074859512,0.02997696,87331.0,87317.0,0.1548]
[1767074859712,0.0974418,87336.0,87317.0,0.1548]
[1767074859713,0.02997696,87330.0,87317.0,0.1548]
[1767074859914,0.02997696,87329.0,87317.0,0.1548]
[1767074860215,0.0974418,87336.0,87317.0,0.1548]
[1767074860415,0.02997729,87335.0,87317.0,0.1548]
[1767074860715,0.02997729,87334.0,87317.0,0.1548]
[1767074860912,0.02997729,87333.0,87317.0,0.1548]
[1767074861210,0.02997729,87332.0,87317.0,0.1548]
[1767074861510,0.02997729,87331.0,87317.0,0.1548]
[1767074861710,0.02997729,87330.0,87317.0,0.1548]
[1767074861911,0.02997729,87329.0,87317.0,0.1548]
[1767074862211,0.0974418,87336.0,87317.0,0.1548]
[1767074862411,0.02997771,87335.0,87317.0,0.1548]
[1767074862614,0.02997771,87334.0,87317.0,0.1548]
[1767074862813,0.02997771,87333.0,87317.0,0.1548]
[1767074863020,0.02997771,87332.0,87317.0,0.1548]
[1767074863217,0.02997771,87331.0,87317.0,0.1548]
[1767074863518,0.02997771,87330.0,87317.0,0.1548]
[1767074863712,0.0974418,87336.0,87317.0,0.1548]
[1767074863713,0.02997771,87329.0,87317.0,0.1548]
[1767074863919,0.011466,87335.0,87317.0,0.1548]
[1767074864122,0.02997793,87334.0,87317.0,0.1548]
[1767074864320,0.02997793,87333.0,87317.0,0.1548]
[1767074864522,0.02997793,87332.0,87317.0,0.1548]
[1767074864721,0.02997793,87331.0,87317.0,0.1548]
[1767074864922,0.02997793,87330.0,87317.0,0.1548]
[1767074865131,0.02997793,87329.0,87317.0,0.1548]
[1767074865319,0.011466,87335.0,87317.0,0.1548]
[1767074865518,0.02997836,87334.0,87317.0,0.1548]
[1767074865725,0.02997836,87333.0,87317.0,0.1548]
[1767074866024,0.011466,87335.0,87317.0,0.1548]
[1767074876338,0.0974418,87336.0,87317.0,0.1662683]
[1767074877939,0.02959184,87335.0,87317.0,0.1662683]
[1767074878142,0.02959184,87334.0,87317.0,0.1662683]
[1767074878341,0.02959184,87333.0,87317.0,0.1662683]
[1767074878541,0.02959184,87332.0,87317.0,0.1662683]
[1767074878841,0.02959184,87331.0,87317.0,0.1662683]
[1767074879042,0.02959184,87330.0,87317.0,0.1662683]
[1767074879239,0.1089076,87336.0,87317.0,0.1662683]
[1767074879444,0.02959184,87335.0,87317.0,0.1662683]
[1767074879635,0.02959184,87334.0,87317.0,0.1662683]
[1767074879835,0.02959184,87333.0,87317.0,0.1662683]
[1767074880037,0.02959184,87332.0,87317.0,0.1662683]
[1767074880237,0.02959184,87331.0,87317.0,0.1662683]
[1767074880537,0.02959184,87330.0,87317.0,0.1662683]
[1767074880842,0.082245,87353.0,87320.0,0.0114678]
[1767074881043,0.15476,87352.0,87317.0,0.1662682]
[1767074881743,0.00017183,87343.0,87326.0,0.00017183]
[1767074881946,0.0114657,87337.0,87326.0,0.00017183]
[1767074882439,0.0114152,87341.0,87326.0,0.00017183]
[1767074883443,0.0113652,87341.0,87326.0,0.00017183]
[1767074887250,0.15476,87342.0,87326.0,0.00017183]
[1767074888350,0.0114656,87338.0,87326.0,0.00017183]
[1767074889751,0.15476,87342.0,87326.0,0.00017183]
[1767074889752,0.1662251,87342.0,87326.0,0.00017183]
[1767074892652,0.02890142,87341.0,87326.0,0.00017183]
[1767074892843,0.02890142,87340.0,87326.0,0.00017183]
[1767074893045,0.02890142,87339.0,87326.0,0.00017183]
[1767074893245,0.02890142,87338.0,87326.0,0.00017183]
[1767074893445,0.02890142,87337.0,87326.0,0.00017183]
[1767074893646,0.02890142,87336.0,87326.0,0.00017183]
[1767074893846,0.02890142,87335.0,87326.0,0.00017183]
[1767074894047,0.1662251,87342.0,87326.0,0.00017183]
[1767074894248,0.0114653,87340.0,87326.0,0.00017183]
[1767074894546,0.02890059,87339.0,87326.0,0.00017183]
[1767074898149,0.09744,87352.0,87331.0,0.0114664]
[1767074898355,0.05732,87352.0,87331.0,0.0114664]
[1767074899150,0.0687838,87352.0,87330.0,0.15597153]
[1767074899553,0.0687838,87352.0,87330.0,0.16743803]
[1767074899850,0.05732,87352.0,87330.0,0.16743803]
[1767074900056,0.0114632,87356.0,87330.0,0.16743803]
[1767074900259,0.0114635,87354.0,87330.0,0.16743803]
[1767074900857,0.0114639,87351.0,87330.0,0.15597153]
[1767074905450,0.0114639,87351.0,87331.0,0.0114664]
[1767074908458,0.0687834,87355.0,87331.0,0.0114664]
[1767074910062,0.02848122,87354.0,87331.0,0.0114664]
[1767074910262,0.0687834,87355.0,87331.0,0.0114664]
[1767074910463,0.02848057,87354.0,87331.0,0.0114664]
[1767074910663,0.0114634,87355.0,87331.0,0.0114664]
[1767074910863,0.02848056,87354.0,87340.0,0.15597153]
[1767074911059,0.0114634,87355.0,87340.0,0.15597153]
[1767074911262,0.0114636,87353.0,87337.0,0.05732]
[1767074924285,0.02820814,87352.0,87337.0,0.05732]
[1767074924475,0.0114636,87353.0,87337.0,0.05732]
[1767074924675,0.02820814,87352.0,87337.0,0.05732]
[1767074924877,0.0114636,87353.0,87337.0,0.05732]
[1767074925078,0.0114639,87351.0,87337.0,0.05732]
[1767074927078,0.02823371,87350.0,87337.0,0.05732]
[1767074927278,0.0114639,87351.0,87337.0,0.05732]
[1767074927478,0.02823371,87350.0,87337.0,0.05732]
[1767074927678,0.0114639,87351.0,87337.0,0.05732]
[1767074927879,0.02823371,87350.0,87337.0,0.05732]
[1767074928173,0.02824917,87349.0,87337.0,0.05732]
[1767074928375,0.0114639,87351.0,87337.0,0.05732]
[1767074928581,0.02824918,87350.0,87337.0,0.05732]
[1767074928776,0.02824918,87349.0,87337.0,0.05732]
[1767074929080,0.0114639,87351.0,87337.0,0.05732]
[1767074929277,0.02824936,87350.0,87337.0,0.05732]
[1767074929476,0.02824936,87349.0,87337.0,0.05732]
[1767074929678,0.0114639,87351.0,87337.0,0.05732]
[1767074929876,0.02824936,87350.0,87337.0,0.05732]
[1767074930079,0.02824936,87349.0,87337.0,0.05732]
[1767074930379,0.0114639,87351.0,87337.0,0.05732]
[1767074930581,0.02824936,87350.0,87337.0,0.05732]
[1767074930781,0.02824936,87349.0,87337.0,0.05732]
[1767074930973,0.0114639,87351.0,87337.0,0.05732]
[1767074931173,0.02824936,87350.0,87337.0,0.05732]
[1767074931481,0.02824936,87349.0,87337.0,0.05732]
[1767074931680,0.0114639,87351.0,87337.0,0.05732]
[1767074931882,0.0282494,87350.0,87337.0,0.05732]
[1767074932082,0.0114639,87351.0,87337.0,0.05732]
[1767074932083,0.0282494,87349.0,87337.0,0.05732]
[1767074932280,0.0114639,87351.0,87337.0,0.05732]
[1767074932480,0.02824944,87350.0,87337.0,0.05732]
[1767074932780,0.02824944,87349.0,87337.0,0.05732]
[1767074932980,0.0114639,87351.0,87337.0,0.05732]
[1767074933181,0.02824944,87350.0,87337.0,0.05732]
[1767074933382,0.02824944,87349.0,87337.0,0.05732]
[1767074933584,0.0114639,87351.0,87337.0,0.05732]
[1767074933786,0.02824947,87350.0,87337.0,0.05732]
[1767074933985,0.02824947,87349.0,87337.0,0.05732]
[1767074934185,0.0114639,87351.0,87337.0,0.05732]
[1767074934385,0.02824951,87350.0,87337.0,0.05732]
[1767074934575,0.02824951,87349.0,87337.0,0.05732]
[1767074934778,0.0114639,87351.0,87337.0,0.05732]
[1767074934979,0.02824951,87350.0,87337.0,0.05732]
[1767074935275,0.02824951,87349.0,87337.0,0.05732]
[1767074935477,0.0114639,87351.0,87337.0,0.05732]
[1767074935677,0.02824959,87350.0,87337.0,0.05732]
[1767074935883,0.02824959,87349.0,87337.0,0.05732]
[1767074936087,0.0114639,87351.0,87337.0,0.05732]
[1767074936287,0.02824962,87350.0,87337.0,0.05732]
[1767074936482,0.02824962,87349.0,87337.0,0.05732]
[1767074936685,0.0114639,87351.0,87337.0,0.05732]
[1767074936686,0.02824962,87348.0,87337.0,0.05732]
[1767074936887,0.0114639,87351.0,87337.0,0.05732]
[1767074937090,0.02824962,87350.0,87337.0,0.05732]
[1767074937288,0.02824962,87349.0,87337.0,0.05732]
[1767074937487,0.02824962,87348.0,87337.0,0.05732]
[1767074937690,0.0114639,87351.0,87337.0,0.05732]
[1767074937892,0.02824963,87350.0,87337.0,0.05732]
[1767074938090,0.02824963,87349.0,87337.0,0.05732]
[1767074938283,0.02824962,87348.0,87337.0,0.05732]
[1767074938484,0.0114639,87351.0,87337.0,0.05732]
[1767074938785,0.02824961,87350.0,87337.0,0.05732]
[1767074938984,0.02824961,87349.0,87337.0,0.05732]
[1767074939195,0.0114639,87351.0,87337.0,0.05732]
[1767074939401,0.02824961,87350.0,87337.0,0.05732]
[1767074939602,0.02824961,87349.0,87337.0,0.05732]
[1767074939804,0.0114639,87351.0,87337.0,0.05732]
[1767074940003,0.02824961,87350.0,87337.0,0.05732]
[1767074940203,0.02824961,87349.0,87337.0,0.05732]
[1767074940499,0.0114625,87362.0,87339.0,0.16743683]
[1767074940803,0.18296953,87361.0,87342.0,0.00017173]
[1767074941006,0.18422106,87360.0,87342.0,0.00017173]
[1767074941205,0.02824953,87359.0,87342.0,0.00017173]
[1767074941405,0.02824953,87358.0,87342.0,0.00017173]
[1767074941601,0.02824953,87357.0,87342.0,0.00017173]
[1767074941904,0.02824953,87356.0,87342.0,0.00017173]
[1767074942099,0.02824953,87355.0,87342.0,0.00017173]
[1767074942300,0.05732,87357.0,87342.0,0.00017173]
[1767074942500,0.02788559,87356.0,87342.0,0.00017173]
[1767074942699,0.02788559,87355.0,87342.0,0.00017173]
[1767074943006,0.05732,87357.0,87342.0,0.00017173]
[1767074943305,0.02788559,87356.0,87342.0,0.00017173]
[1767074943605,0.02788559,87355.0,87342.0,0.00017173]
[1767074943905,0.05732,87357.0,87342.0,0.00017173]
[1767074944109,0.02788445,87356.0,87342.0,0.00017173]
[1767074944301,0.02788445,87355.0,87342.0,0.00017173]
[1767074944497,0.05732,87357.0,87342.0,0.00017173]
[1767074944704,0.0278831,87356.0,87342.0,0.00017173]
[1767074944898,0.0278831,87355.0,87342.0,0.00017173]
[1767074945098,0.05732,87357.0,87342.0,0.00017173]
[1767074945299,0.02788208,87356.0,87342.0,0.00017173]
[1767074945498,0.02788207,87355.0,87342.0,0.00017173]
[1767074945798,0.05732,87357.0,87342.0,0.00017173]
[1767074945998,0.03934527,87356.0,87342.0,0.00017173]
[1767074946198,0.02788207,87355.0,87342.0,0.00017173]
[1767074946398,0.0114632,87356.0,87342.0,0.00017173]
[1767074946601,0.05732,87357.0,87342.0,0.00017173]
[1767074946909,0.02788126,87356.0,87342.0,0.00017173]
[1767074947100,0.05732,87357.0,87342.0,0.00017173]
[1767074947299,0.0278805,87356.0,87342.0,0.00017173]
[1767074947506,0.05732,87357.0,87342.0,0.00017173]
[1767074947706,0.02788046,87356.0,87342.0,0.00017173]
[1767074947907,0.05732,87357.0,87342.0,0.00017173]
[1767074948208,0.02788046,87356.0,87342.0,0.00017173]
[1767074948405,0.05732,87357.0,87342.0,0.00017173]
[1767074948606,0.02787966,87356.0,87342.0,0.00017173]
[1767074948805,0.05732,87357.0,87342.0,0.00017173]
[1767074949010,0.02787966,87356.0,87342.0,0.00017173]
[1767074949211,0.05732,87357.0,87342.0,0.00017173]
[1767074949406,0.027879,87356.0,87342.0,0.00017173]
[1767074949607,0.202,87384.0,87346.0,0.15597153]
[1767074949807,0.0114624,87362.0,87342.0,0.01163673]
[1767074950006,0.0114624,87362.0,87350.0,0.15597153]
[1767074950206,0.0114624,87362.0,87347.0,0.05732]
[1767074950601,0.011462,87366.0,87347.0,0.05732]
[1767074950806,0.0114622,87364.0,87350.0,0.15597153]
[1767074951007,0.02786629,87363.0,87350.0,0.15597153]
[1767074951207,0.0114622,87364.0,87347.0,0.05732]
[1767074951409,0.0114625,87362.0,87347.0,0.05732]
[1767074951706,0.0114619,87366.0,87350.0,0.15597153]
[1767074952102,0.05732,87367.0,87351.0,0.0114637]
[1767074952303,0.0974,87376.0,87357.0,0.15597153]
[1767074952502,0.0114609,87374.0,87358.0,0.00017173]
[1767074952705,0.02785308,87373.0,87358.0,0.00017173]
[1767074953010,0.03931406,87372.0,87358.0,0.00017173]
[1767074953310,0.05732,87375.0,87360.0,0.15597153]
[1767074953507,0.02784471,87374.0,87360.0,0.15597153]
[1767074953708,0.02784471,87373.0,87358.0,0.00017173]
[1767074953908,0.05732,87375.0,87358.0,0.00017173]
[1767074954104,0.0114617,87368.0,87358.0,0.00017173]
[1767074957109,0.0114611,87372.0,87358.0,0.00017173]
[1767074958016,0.0114611,87372.0,87360.0,0.15597153]
[1767074958516,0.0114611,87372.0,87358.0,0.00017173]
[1767074959012,0.0114616,87369.0,87358.0,0.00017173]
[1767074960419,0.05732,87375.0,87342.0,0.011465]
[1767074960613,0.0114631,87357.0,87348.0,0.0974]
[1767074961409,0.0114631,87357.0,87344.0,0.00017173]
[1767074962010,0.0114631,87357.0,87344.0,1.73e-06]
[1767074967118,0.0114631,87357.0,87337.0,0.11998549]
[1767074967119,0.00017141,87361.0,87337.0,0.06266549]
[1767074967419,0.0114644,87347.0,87333.0,0.0974]
[1767074967624,0.0114644,87347.0,87332.0,0.05732]
[1767074983440,0.0114648,87344.0,87332.0,0.05732]
[1767074988242,0.0114651,87341.0,87332.0,0.05732]
[1767074994551,0.0114651,87341.0,87331.0,0.00017173]
[1767074994751,0.0114651,87341.0,87328.0,0.05732]
[1767074996653,0.0114656,87338.0,87328.0,0.05732]
[1767074997245,0.0114663,87332.0,87326.0,0.00017173]
[1767074997644,0.0114659,87336.0,87326.0,0.00017173]
[1767074997844,0.0114659,87336.0,87322.0,0.00014139]
[1767074998754,0.05749173,87343.0,87322.0,0.00014139]
[1767074998962,0.0114661,87334.0,87324.0,0.00017173]
[1767074999443,0.0114661,87334.0,87322.0,0.00014139]
[1767075002854,0.0114665,87331.0,87322.0,0.00014139]
[1767075021768,0.0114665,87331.0,87322.0,9e-08]
[1767075021964,0.0114668,87328.0,87322.0,9e-08]
[1767075022568,0.00013765,87327.0,87322.0,9e-08]
[1767075026671,0.05732,87333.0,87322.0,9e-08]
[1767075040581,0.0687862,87333.0,87322.0,9e-08]
[1767075043976,0.0687862,87333.0,87316.0,0.05732]
[1767075044880,0.0687862,87333.0,87316.0,0.0574348]
[1767075050085,0.0114667,87330.0,87316.0,0.0574348]
[1767075051586,0.011467,87328.0,87316.0,0.0574348]
[1767075053487,0.15606879,87330.0,87316.0,0.0574348]
[1767075053689,0.0687862,87333.0,87316.0,0.0574348]
[1767075054381,0.011467,87327.0,87316.0,0.0574348]
[1767075059314,0.0114665,87331.0,87316.0,0.0574348]
[1767075062108,0.05732,87333.0,87320.0,0.15606879]
[1767075063706,0.0114663,87332.0,87320.0,0.15606879]
[1767075065808,0.0114663,87332.0,87316.0,0.0574348]
[1767075072414,0.05732,87333.0,87316.0,0.0574348]
[1767075072915,0.05732,87333.0,87320.0,0.15606879]
[1767075073615,0.0687863,87333.0,87320.0,0.15606879]
[1767075073815,0.0687863,87333.0,87316.0,0.0574348]
[1767075075719,0.0687863,87333.0,87320.0,0.15606879]
[1767075076621,0.0114663,87333.0,87320.0,0.15606879]
[1767075076919,0.05732,87332.0,87320.0,0.15606879]
[1767075079921,0.05732,87332.0,87316.0,0.0574348]
[1767075083923,0.05732,87331.0,87316.0,0.0574348]
[1767075087524,0.05732,87331.0,87316.0,0.0689032]
[1767075091526,0.05732,87331.0,87319.0,0.011468]
[1767075096032,0.0114651,87342.0,87319.0,0.011468]
[1767075096234,0.1826763,87341.0,87319.0,0.011468]
[1767075096532,0.0279163,87340.0,87319.0,0.011468]
[1767075096836,0.0279163,87339.0,87319.0,0.011468]
[1767075097020,0.0279163,87338.0,87319.0,0.011468]
[1767075097223,0.0279163,87337.0,87319.0,0.011468]
[1767075097424,0.0114653,87340.0,87319.0,0.011468]
[1767075097634,0.02791598,87339.0,87319.0,0.011468]
[1767075097834,0.02791598,87338.0,87319.0,0.011468]
[1767075098033,0.02791598,87337.0,87319.0,0.011468]
[1767075098333,0.0114653,87340.0,87319.0,0.011468]
[1767075098530,0.08523587,87339.0,87319.0,0.011468]
[1767075098729,0.02791587,87338.0,87319.0,0.011468]
[1767075099031,0.02791587,87337.0,87319.0,0.011468]
[1767075099233,0.05732,87339.0,87319.0,0.011468]
[1767075099431,0.02791496,87338.0,87319.0,0.011468]
[1767075099735,0.05732,87339.0,87319.0,0.011468]
[1767075099924,0.02791495,87338.0,87319.0,0.011468]
[1767075100125,0.05732,87339.0,87319.0,0.011468]
[1767075100327,0.02791495,87338.0,87319.0,0.011468]
[1767075100526,0.05732,87339.0,87319.0,0.011468]
[1767075100730,0.02791442,87338.0,87319.0,0.011468]
[1767075100930,0.05732,87339.0,87319.0,0.011468]